bitfinex/quotes_BTCUSD_20250624
["timestamp","ask_amount","ask_price","bid_price","bid_amount"]
[1750807556203,1.71672749,105900.0,105890.0,0.01894602]
[1750807556804,1.74103393,105900.0,105890.0,0.01894602]
[1750807557216,1.71672749,105900.0,105890.0,0.01894602]
[1750807557857,1.7344049,105900.0,105890.0,0.01894602]
[1750807558064,1.74103392,105900.0,105890.0,0.01894602]
[1750807558798,1.7233565,105900.0,105890.0,0.01894602]
[1750807558995,1.71672749,105900.0,105890.0,0.01894602]
[1750807559159,1.74103393,105900.0,105890.0,0.01894602]
[1750807559360,1.7344049,105900.0,105890.0,0.01894602]
[1750807559739,1.74103449,105900.0,105890.0,0.01894602]
[1750807559878,1.73440531,105900.0,105890.0,0.01894602]
[1750807560274,1.74103449,105900.0,105890.0,0.01894602]
[1750807562456,1.74103614,105900.0,105890.0,0.01894602]
[1750807565136,1.74103614,105900.0,105890.0,0.04914602]
[1750807565698,1.72335667,105900.0,105890.0,0.04914602]
[1750807567928,1.7410377,105900.0,105890.0,0.04914602]
[1750807570812,1.74103826,105900.0,105890.0,0.04914602]
[1750807572538,1.47814134,105900.0,105890.0,0.04914602]
[1750807573974,1.47814471,105900.0,105890.0,0.04914602]
[1750807574389,1.43220494,105900.0,105890.0,0.04914602]
[1750807576148,1.69510186,105900.0,105890.0,0.04914602]
[1750807576338,1.72335862,105900.0,105890.0,0.04914602]
[1750807576800,1.7233579,105900.0,105890.0,0.03414602]
[1750807576999,1.46046098,105900.0,105890.0,0.03414602]
[1750807577204,1.46046098,105900.0,105890.0,0.01894602]
[1750807579623,1.45383057,105900.0,105890.0,0.01894602]
[1750807579765,1.46046082,105900.0,105890.0,0.01894602]
[1750807580184,1.72335774,105900.0,105890.0,0.01894602]
[1750807581203,1.74103839,105900.0,105890.0,0.01894602]
[1750807582662,1.74103842,105900.0,105890.0,0.01894602]
[1750807585267,1.74103965,105900.0,105890.0,0.01894602]
[1750807585517,1.74104007,105900.0,105890.0,0.01894602]
[1750807586856,1.72335819,105900.0,105890.0,0.01894602]
[1750807587061,1.72335819,105900.0,105890.0,0.04964602]
[1750807587266,1.46046127,105900.0,105890.0,0.04964602]
[1750807587676,1.45383057,105900.0,105890.0,0.04964602]
[1750807587932,1.46046188,105900.0,105890.0,0.04964602]
[1750807592731,1.46046188,105900.0,105890.0,0.03444602]
[1750807594486,1.30594188,105900.0,105890.0,0.04974602]
[1750807594688,1.43196547,105900.0,105890.0,0.04974602]
[1750807595514,1.27768547,105900.0,105890.0,0.04974602]
[1750807595738,1.43196547,105900.0,105890.0,0.04974602]
[1750807597106,1.43196531,105900.0,105890.0,0.04974602]
[1750807598340,1.43196528,105900.0,105890.0,0.04974602]
[1750807599826,1.43196528,105900.0,105890.0,0.01894602]
[1750807600739,1.6948622,105900.0,105890.0,0.01894602]
[1750807601017,1.43196528,105900.0,105890.0,0.01894602]
[1750807603536,1.43196486,105900.0,105890.0,0.01894602]
[1750807605760,1.69486178,105900.0,105890.0,0.01894602]
[1750807605973,1.43196486,105900.0,105890.0,0.01894602]
[1750807607945,1.69486178,105900.0,105890.0,0.01894602]
[1750807610448,1.43196486,105900.0,105890.0,0.01894602]
[1750807611243,1.71106178,105900.0,105890.0,0.01894602]
[1750807611459,1.75491854,105900.0,105890.0,0.01894602]
[1750807611669,1.75491838,105900.0,105890.0,0.01894602]
[1750807612716,1.77260119,105900.0,105890.0,0.01894602]
[1750807613123,1.75491838,105900.0,105890.0,0.01894602]
[1750807613342,1.77260114,105900.0,105890.0,0.01894602]
[1750807613805,1.77260071,105900.0,105890.0,0.01894602]
[1750807615289,1.57828071,105900.0,105890.0,0.01894602]
[1750807615459,1.77244071,105900.0,105890.0,0.01894602]
[1750807615677,1.75684071,105900.0,105890.0,0.01894602]
[1750807616138,1.77264071,105900.0,105890.0,0.01894602]
[1750807617018,1.85579864,105900.0,105890.0,0.01894602]
[1750807617808,1.85579864,105900.0,105890.0,0.01659702]
[1750807620406,1.85578981,105900.0,105890.0,0.01659702]
[1750807620837,1.85578992,105900.0,105890.0,0.01659702]
[1750807621082,1.83148542,105900.0,105890.0,0.01659702]
[1750807621328,1.8557893,105900.0,105890.0,0.01659702]
[1750807621529,1.85578933,105900.0,105890.0,0.01659702]
[1750807624373,1.85578658,105900.0,105890.0,0.01659702]
[1750807626542,1.83811375,105900.0,105890.0,0.01659702]
[1750807626743,1.85578363,105900.0,105890.0,0.01659702]
[1750807627186,1.85578432,105900.0,105890.0,0.01659702]
[1750807627767,1.85578436,105900.0,105890.0,0.01659702]
[1750807632198,1.85578435,105900.0,105890.0,0.01659702]
[1750807633460,1.85578453,105900.0,105890.0,0.01659702]
[1750807633967,1.95522453,105900.0,105890.0,0.01659702]
[1750807634332,1.85578453,105900.0,105890.0,0.01659702]
[1750807635553,1.89347281,105900.0,105890.0,0.01659702]
[1750807636319,1.89347344,105900.0,105890.0,0.01659702]
[1750807636518,1.94339044,105900.0,105890.0,0.01659702]
[1750807639405,1.94339191,105900.0,105890.0,0.01659702]
[1750807641503,1.9257183,105900.0,105890.0,0.01659702]
[1750807641654,1.94339279,105900.0,105890.0,0.01659702]
[1750807643914,1.90570451,105900.0,105890.0,0.01659702]
[1750807644493,1.94339279,105900.0,105890.0,0.01659702]
[1750807648128,1.94340257,105900.0,105890.0,0.01659702]
[1750807650838,1.93677185,105900.0,105890.0,0.01659702]
[1750807651039,1.92760228,105900.0,105890.0,0.01659702]
[1750807651393,1.94280228,105900.0,105890.0,0.01659702]
[1750807653812,1.94280229,105900.0,105890.0,0.01659702]
[1750807654035,2.04224229,105900.0,105890.0,0.01659702]
[1750807654238,1.94280229,105900.0,105890.0,0.01659702]
[1750807654424,1.94280237,105900.0,105890.0,0.01659702]
[1750807656796,1.94279718,105900.0,105890.0,0.01659702]
[1750807659613,1.94279609,105900.0,105890.0,0.01659702]
[1750807660519,1.94279601,105900.0,105890.0,0.01659702]
[1750807662598,1.92759472,105900.0,105890.0,0.01659702]
[1750807664044,2.02703472,105900.0,105890.0,0.01659702]
[1750807664249,1.92759472,105900.0,105890.0,0.01659702]
[1750807665505,1.92759495,105900.0,105890.0,0.01659702]
[1750807666828,1.89408581,105900.0,105890.0,0.01659702]
[1750807667669,1.88745764,105900.0,105890.0,0.01659702]
[1750807667871,1.89408617,105900.0,105890.0,0.01659702]
[1750807668085,1.87788617,105900.0,105890.0,0.01659702]
[1750807669526,1.84277823,105900.0,105890.0,0.01659702]
[1750807669956,1.87788617,105900.0,105890.0,0.01659702]
[1750807670837,1.87788666,105900.0,105890.0,0.01659702]
[1750807671223,1.87125813,105900.0,105890.0,0.01659702]
[1750807671431,1.8942862,105900.0,105890.0,0.01659702]
[1750807672469,1.89428657,105900.0,105890.0,0.01659702]
[1750807674091,1.87661,105900.0,105890.0,0.01659702]
[1750807674289,1.89428585,105900.0,105890.0,0.01659702]
[1750807676608,1.87788585,105900.0,105890.0,0.01659702]
[1750807677096,1.87788587,105900.0,105890.0,0.01659702]
[1750807680476,1.85358156,105900.0,105890.0,0.01659702]
[1750807680678,1.87788622,105900.0,105890.0,0.01659702]
[1750807681322,1.59870128,105900.0,105890.0,0.04679702]
[1750807681481,1.79246128,105900.0,105890.0,0.03169702]
[1750807681651,1.82597042,105900.0,105890.0,0.01659702]
[1750807682305,1.754773,105900.0,105890.0,0.01659702]
[1750807682498,1.79246128,105900.0,105890.0,0.04789702]
[1750807683244,1.79246125,105900.0,105890.0,0.04789702]
[1750807685242,1.79246125,105900.0,105890.0,0.01659702]
[1750807685758,1.82756919,105900.0,105890.0,0.01659702]
[1750807686179,1.82756745,105900.0,105890.0,0.01659702]
[1750807686390,1.63380745,105900.0,105890.0,0.01659702]
[1750807686597,1.82756745,105900.0,105890.0,0.01659702]
[1750807687646,1.82756675,105900.0,105890.0,0.01659702]
[1750807688701,1.85956675,105900.0,105890.0,0.01659702]
[1750807689058,1.84316637,105900.0,105890.0,0.01659702]
[1750807689259,1.82756637,105900.0,105890.0,0.01659702]
[1750807691982,1.82756581,105900.0,105890.0,0.01659702]
[1750807695570,1.82756529,105900.0,105890.0,0.01659702]
[1750807696177,1.82756513,105900.0,105890.0,0.01659702]
[1750807699020,1.82756513,105900.0,105890.0,0.04729702]
[1750807699021,1.67364513,105900.0,105890.0,0.04729702]
[1750807699224,1.82752513,105900.0,105890.0,0.04729702]
[1750807699384,1.82752516,105900.0,105890.0,0.04729702]
[1750807700514,1.80322456,105900.0,105890.0,0.04729702]
[1750807700651,1.82752515,105900.0,105890.0,0.04729702]
[1750807702753,1.75472893,105900.0,105890.0,0.04729702]
[1750807703282,1.73042834,105900.0,105890.0,0.04729702]
[1750807703485,1.75472902,105900.0,105890.0,0.04729702]
[1750807705704,1.47729125,105900.0,105890.0,0.04729702]
[1750807706236,1.47729061,105900.0,105890.0,0.04729702]
[1750807706440,1.42642844,105900.0,105890.0,0.04729702]
[1750807706636,1.47732351,105900.0,105890.0,0.04729702]
[1750807707562,1.74022043,105900.0,105890.0,0.04729702]
[1750807708317,1.72254721,105900.0,105890.0,0.04729702]
[1750807708523,1.74021732,105900.0,105890.0,0.04729702]
[1750807708718,1.4772804,105900.0,105890.0,0.04729702]
[1750807709141,1.45960971,105900.0,105890.0,0.04729702]
[1750807709344,1.47727975,105900.0,105890.0,0.04729702]
[1750807709718,1.47727977,105900.0,105890.0,0.04729702]
[1750807710396,1.47727768,105900.0,105890.0,0.04729702]
[1750807712190,1.4772764,105900.0,105890.0,0.04729702]
[1750807714043,1.45960881,105900.0,105890.0,0.04729702]
[1750807714251,1.47727489,105900.0,105890.0,0.04729702]
[1750807715111,1.47727413,105900.0,105890.0,0.04729702]
[1750807716872,0.95148029,105900.0,105890.0,0.04729702]
[1750807717078,1.47727413,105900.0,105890.0,0.04729702]
[1750807718048,1.47727325,105900.0,105890.0,0.04729702]
[1750807718469,1.44899821,105900.0,105890.0,0.04729702]
[1750807719032,1.44899758,105900.0,105890.0,0.04729702]
[1750807721002,1.44899658,105900.0,105890.0,0.04729702]
[1750807722058,1.44895658,105900.0,105890.0,0.04729702]
[1750807722806,1.44233254,105900.0,105890.0,0.04729702]
[1750807723849,1.42466843,105900.0,105890.0,0.04729702]
[1750807736632,1.27086843,105900.0,105890.0,0.04729702]
[1750807736830,1.42458843,105900.0,105890.0,0.04729702]
[1750807737851,1.42458843,105900.0,105890.0,0.04494802]
[1750807738295,1.27086843,105900.0,105890.0,0.04494802]
[1750807738495,1.42458843,105900.0,105890.0,0.04494802]
[1750807743590,1.4422489,105900.0,105890.0,0.04494802]
[1750807744353,1.44224928,105900.0,105890.0,0.04494802]
[1750807745203,1.44225089,105900.0,105890.0,0.04494802]
[1750807750955,1.44225523,105900.0,105890.0,0.04494802]
[1750807751563,0.91646139,105900.0,105890.0,0.04494802]
[1750807751874,1.44225523,105900.0,105890.0,0.04494802]
[1750807752712,1.44221523,105900.0,105890.0,0.04494802]
[1750807753315,0.91642139,105900.0,105890.0,0.04494802]
[1750807753560,1.44221523,105900.0,105890.0,0.04494802]
[1750807753989,1.42454843,105900.0,105890.0,0.04494802]
[1750807754520,0.69423459,105900.0,105890.0,0.04394802]
[1750807754728,1.34529843,105900.0,105890.0,0.04403102]
[1750807754941,0.82250459,105900.0,105890.0,0.04403102]
[1750807755132,1.1720384,105900.0,105890.0,0.04403102]
[1750807755363,1.3256784,105900.0,105890.0,0.04403102]
[1750807755999,1.07653654,105900.0,105890.0,0.04403102]
[1750807756213,1.23017654,105900.0,105890.0,0.04403102]
[1750807757247,1.07653654,105900.0,105890.0,0.04403102]
[1750807757702,0.5507427,105900.0,105890.0,0.04403102]
[1750807757904,0.2107427,105900.0,105890.0,0.04403102]
[1750807758143,0.3643827,105900.0,105890.0,0.04403102]
[1750807758352,0.3643827,105900.0,105890.0,0.04283102]
[1750807759039,0.2107427,105900.0,105890.0,0.30808851]
[1750807759262,0.3643827,105900.0,105890.0,0.30572794]
[1750807760170,0.2107427,105900.0,105890.0,0.30572794]
[1750807760424,0.3643827,105900.0,105890.0,0.30572794]
[1750807760658,0.3653827,105900.0,105890.0,0.31372794]
[1750807761077,0.3623827,105900.0,105890.0,0.31372794]
[1750807761290,0.3633827,105900.0,105890.0,0.31472794]
[1750807761719,0.3623827,105900.0,105890.0,0.31372794]
[1750807762133,0.3633827,105900.0,105890.0,0.31572794]
[1750807762552,0.3633427,105900.0,105890.0,0.4112298]
[1750807762772,0.3633427,105900.0,105890.0,0.60010504]
[1750807762988,0.2003001,105900.0,105890.0,0.6095488]
[1750807763201,0.3539001,105900.0,105890.0,0.4112298]
[1750807763629,0.3539001,105900.0,105890.0,0.60010504]
[1750807763848,0.3539001,105900.0,105890.0,0.14833288]
[1750807764055,0.3539001,105900.0,105890.0,0.41359022]
[1750807764263,0.3539001,105900.0,105890.0,0.4112298]
[1750807765962,0.3539001,105900.0,105890.0,0.14833288]
[1750807766166,0.3539001,105900.0,105890.0,0.41359022]
[1750807766373,0.3539001,105900.0,105890.0,0.4112298]
[1750807768708,0.2003001,105900.0,105890.0,0.6095488]
[1750807768917,0.3539001,105900.0,105890.0,0.61899247]
[1750807769121,0.2003001,105900.0,105890.0,0.63787936]
[1750807769363,0.03032789,105900.0,105890.0,0.68696258]
[1750807769557,0.03032789,105900.0,105890.0,0.68696195]
[1750807769774,0.02088457,105900.0,105890.0,0.96439972]
[1750807769973,0.01144233,105900.0,105890.0,0.7015028]
[1750807770127,0.02088439,105900.0,105890.0,0.7015028]
[1750807770575,0.0208843,105900.0,105890.0,0.8551028]
[1750807770753,0.03032672,105900.0,105890.0,0.8551028]
[1750807770955,0.03976941,105900.0,105890.0,0.8551028]
[1750807771194,0.04921219,105900.0,105890.0,0.8551028]
[1750807772241,0.03976941,105900.0,105890.0,0.8551028]
[1750807772450,0.03976941,105900.0,105890.0,0.7015028]
[1750807773143,0.03976932,105900.0,105890.0,0.7015028]
[1750807773358,0.04921201,105900.0,105890.0,0.7015028]
[1750807774391,0.04921273,105900.0,105890.0,0.7015028]
[1750807774591,0.03976995,105900.0,105890.0,0.7015028]
[1750807774770,0.03032726,105900.0,105890.0,0.7015028]
[1750807774973,0.03976995,105900.0,105890.0,0.7015028]
[1750807775592,0.03032726,105900.0,105890.0,0.7015028]
[1750807776778,0.02088466,105900.0,105890.0,0.7015028]
[1750807776995,0.01144224,105900.0,105890.0,0.7015028]
[1750807777204,0.02088466,105900.0,105890.0,0.7015028]
[1750807777920,0.002,105900.0,105890.0,0.7015028]
[1750807778111,0.02088466,105900.0,105890.0,0.7015028]
[1750807778308,0.03032726,105900.0,105890.0,0.7015028]
[1750807779362,0.03976995,105900.0,105890.0,0.7015028]
[1750807780581,0.03032726,105900.0,105890.0,0.7015028]
[1750807781393,0.03976995,105900.0,105890.0,0.7015028]
[1750807782388,0.23807014,105900.0,105890.0,0.41027622]
[1750807782602,0.04921273,105900.0,105890.0,0.70150298]
[1750807785890,0.03976995,105900.0,105890.0,0.70150298]
[1750807786320,0.04921273,105900.0,105890.0,0.70150298]
[1750807786716,0.03976995,105900.0,105890.0,0.70150298]
[1750807787946,0.04921273,105900.0,105890.0,0.70150298]
[1750807790500,0.23807077,105900.0,105890.0,0.85498298]
[1750807790924,0.23807077,105900.0,105890.0,0.42577065]
[1750807791113,0.03977049,105900.0,105890.0,0.682576]
[1750807791339,0.2286279,105900.0,105890.0,0.69201913]
[1750807791525,0.23807077,105900.0,105890.0,0.682576]
[1750807791673,0.22862835,105900.0,105890.0,0.682576]
[1750807792093,0.22862835,105900.0,105890.0,0.69201913]
[1750807792296,0.03032807,105900.0,105890.0,0.69201913]
[1750807792511,0.21918548,105900.0,105890.0,0.69201913]
[1750807793139,0.03032807,105900.0,105890.0,0.69201913]
[1750807793344,0.21918548,105900.0,105890.0,0.69201913]
[1750807793751,0.02088529,105900.0,105890.0,0.69201913]
[1750807794196,0.03032807,105900.0,105890.0,0.69201913]
[1750807794615,0.02925327,105900.0,105890.0,0.69201913]
[1750807795953,0.01981049,105900.0,105890.0,0.69201913]
[1750807798268,0.2086679,105900.0,105890.0,0.69201913]
[1750807798472,0.21811068,105900.0,105890.0,0.69201913]
[1750807799470,0.01390659,105900.0,105890.0,0.69201913]
[1750807799890,0.02334919,105900.0,105890.0,0.69201913]
[1750807800504,0.2122066,105900.0,105890.0,0.69201913]
[1750807800721,0.22164947,105900.0,105890.0,0.69201913]
[1750807801760,0.22164947,105900.0,105890.0,0.682576]
[1750807806644,0.21220687,105900.0,105890.0,0.40079255]
[1750807806870,0.21220687,105900.0,105890.0,0.68257627]
[1750807807063,0.21220687,105900.0,105890.0,0.67313296]
[1750807807230,0.20774306,105900.0,105890.0,0.67313296]
[1750807807438,0.20774306,105900.0,105890.0,0.64297636]
[1750807807645,0.20774306,105900.0,105890.0,0.69201967]
[1750807808077,0.20774306,105900.0,105890.0,0.70146289]
[1750807810480,0.1923962,105900.0,105890.0,0.70146289]
[1750807817739,0.01888529,105900.0,105890.0,0.70146244]
[1750807817959,0.02832744,105900.0,105890.0,0.70146244]
[1750807818389,0.01888475,105900.0,105890.0,0.70146244]
[1750807818591,0.02832744,105900.0,105890.0,0.70146244]
[1750807820555,0.00944269,105900.0,105890.0,0.70146244]
[1750807821010,0.01888475,105900.0,105890.0,0.70146244]
[1750807821215,0.02832744,105900.0,105890.0,0.70146244]
[1750807822235,0.01888475,105900.0,105890.0,0.70146244]
[1750807822380,0.02832744,105900.0,105890.0,0.70146244]
[1750807828575,0.03777022,105900.0,105890.0,0.70146244]
[1750807830376,0.01888547,105900.0,105890.0,0.70146244]
[1750807830663,0.01888475,105900.0,105890.0,0.70146244]
[1750807830833,0.02832744,105900.0,105890.0,0.70146244]
[1750807832110,0.02832744,105900.0,105890.0,0.43856552]
[1750807832318,0.02832744,105900.0,105890.0,0.70146244]
[1750807833161,0.01888475,105900.0,105890.0,0.70146244]
[1750807833500,0.02832735,105900.0,105890.0,0.70146244]
[1750807834257,0.03777004,105900.0,105890.0,0.70146244]
[1750807837203,0.02832735,105900.0,105890.0,0.70146244]
[1750807840207,0.01888475,105900.0,105890.0,0.70146244]
[1750807840427,0.02832744,105900.0,105890.0,0.70146244]
[1750807841051,0.02832744,105900.0,105890.0,0.43856552]
[1750807841260,0.02832744,105900.0,105890.0,0.70146244]
[1750807841671,0.01888475,105900.0,105890.0,0.70146244]
[1750807841857,0.02832744,105900.0,105890.0,0.70146244]
[1750807842508,0.02832744,105900.0,105890.0,0.72037244]
[1750807842724,0.02832744,105900.0,105890.0,0.70146244]
[1750807843574,0.01888475,105900.0,105890.0,0.70146244]
[1750807843956,0.02832744,105900.0,105890.0,0.70146244]
[1750807846460,0.01888475,105900.0,105890.0,0.70146244]
[1750807846666,0.02832744,105900.0,105890.0,0.70146244]
[1750807846787,0.02832744,105900.0,105890.0,0.68576244]
[1750807847725,0.02832735,105900.0,105890.0,0.68576244]
[1750807848440,0.03777004,105900.0,105890.0,0.68576244]
[1750807849221,0.03777004,105900.0,105890.0,0.67076244]
[1750807850134,0.02832735,105900.0,105890.0,0.67076244]
[1750807851272,0.01888475,105900.0,105890.0,0.40786552]
[1750807851490,0.01888475,105900.0,105890.0,0.67076244]
[1750807853557,0.02832744,105900.0,105890.0,0.67076244]
[1750807853927,0.03777004,105900.0,105890.0,0.67076244]
[1750807857956,0.03777004,105900.0,105890.0,0.66841444]
[1750807858618,0.02832735,105900.0,105890.0,0.66841444]
[1750807859688,0.01888475,105900.0,105890.0,0.66841444]
[1750807860297,0.02832744,105900.0,105890.0,0.66841444]
[1750807860675,0.02832735,105900.0,105890.0,0.66841444]
[1750807860884,0.01888475,105900.0,105890.0,0.66841444]
[1750807865958,0.02832744,105900.0,105890.0,0.66841444]
[1750807866412,0.01888475,105900.0,105890.0,0.66841444]
[1750807868025,0.01888466,105900.0,105890.0,0.66841444]
[1750807868573,0.02832717,105900.0,105890.0,0.66841444]
[1750807868770,0.00944206,105900.0,105890.0,0.64952728]
[1750807868928,0.39188326,105910.0,105900.0,0.2078257]
[1750807869123,0.39188326,105910.0,105900.0,0.56622448]
[1750807870593,0.37688326,105910.0,105900.0,0.57566699]
[1750807870917,0.36128326,105910.0,105900.0,0.58910941]
[1750807871396,0.36128326,105910.0,105900.0,0.57966699]
[1750807872864,0.37748326,105910.0,105900.0,0.57966699]
[1750807873854,0.36228326,105910.0,105900.0,0.58066699]
[1750807874222,0.36228326,105910.0,105900.0,0.31777007]
[1750807874428,0.37778326,105910.0,105900.0,0.58066699]
[1750807876022,0.37778326,105910.0,105900.0,0.59010941]
[1750807876228,0.19232602,105910.0,105900.0,0.89304857]
[1750807876401,0.02932414,105910.0,105900.0,0.93268857]
[1750807878219,0.03876594,105910.0,105900.0,0.93268857]
[1750807879415,0.02932414,105910.0,105900.0,0.93268857]
[1750807879618,0.03876585,105910.0,105900.0,0.93268857]
[1750807880103,0.04820765,105910.0,105900.0,0.93268857]
[1750807880706,0.04820836,105910.0,105900.0,0.91728857]
[1750807881660,0.04820836,105910.0,105900.0,0.90208857]
[1750807882559,0.23704794,105910.0,105900.0,0.90208857]
[1750807883756,0.23704856,105910.0,105900.0,0.90208857]
[1750807883926,0.23704856,105910.0,105900.0,0.89264633]
[1750807884123,0.22760694,105910.0,105900.0,0.89264633]
[1750807884339,0.21816523,105910.0,105900.0,0.89264633]
[1750807884712,0.20872343,105910.0,105900.0,0.60142188]
[1750807885115,0.19928155,105910.0,105900.0,0.60142188]
[1750807888889,0.18983958,105910.0,105900.0,0.59197919]
[1750807889065,0.20513958,105910.0,105900.0,0.59197919]
[1750807889484,0.20513958,105910.0,105900.0,0.14022486]
[1750807889687,0.20513958,105910.0,105900.0,0.59197919]
[1750807890261,0.20513958,105910.0,105900.0,0.60142206]
[1750807890477,0.20513958,105910.0,105900.0,0.59197919]
[1750807890980,0.20513958,105910.0,105900.0,0.60142206]
[1750807892735,0.20513958,105910.0,105900.0,0.61086484]
[1750807893329,0.18983958,105910.0,105900.0,0.61086484]
[1750807893734,0.18983958,105910.0,105900.0,0.62030753]
[1750807893938,0.18983958,105910.0,105900.0,0.35741061]
[1750807894137,0.18983958,105910.0,105900.0,0.62030753]
[1750807894948,0.18983958,105910.0,105900.0,0.61086484]
[1750807895332,0.18983958,105910.0,105900.0,0.34796792]
[1750807895558,0.18983958,105910.0,105900.0,0.61086484]
[1750807897859,0.18983958,105910.0,105900.0,0.34796792]
[1750807898089,0.18983958,105910.0,105900.0,0.61086484]
[1750807898513,0.18983958,105910.0,105900.0,0.34796792]
[1750807898742,0.18983958,105910.0,105900.0,0.61086484]
[1750807899808,0.18983958,105910.0,105900.0,0.62030753]
[1750807900632,0.18983958,105910.0,105900.0,0.61086484]
[1750807901769,0.18983958,105910.0,105900.0,0.60142206]
[1750807902763,0.18983958,105910.0,105900.0,0.61086484]
[1750807907525,0.18983958,105910.0,105900.0,0.34796792]
[1750807907752,0.18983958,105910.0,105900.0,0.61086484]
[1750807908995,0.18983958,105910.0,105900.0,0.62030753]
[1750807910482,0.18983958,105910.0,105900.0,0.35741061]
[1750807910705,0.18983958,105910.0,105900.0,0.62030753]
[1750807910917,0.18983958,105910.0,105900.0,0.61086484]
[1750807916334,0.20543958,105910.0,105900.0,0.32908227]
[1750807916566,0.20543958,105910.0,105900.0,0.14022486]
[1750807916765,0.20543958,105910.0,105900.0,0.40312178]
[1750807920076,0.20543958,105910.0,105900.0,0.10058486]
[1750807920281,0.20543958,105910.0,105900.0,0.14018486]
[1750807920282,0.22193958,105910.0,105900.0,0.14018486]
[1750807920640,0.22193958,105910.0,105900.0,0.005083]
[1750807920847,0.56046874,105910.0,105900.0,0.005083]
[1750807924925,0.4848365,105910.0,105900.0,0.005083]
[1750807932922,0.84323528,105910.0,105900.0,0.005083]
[1750807933143,0.60870536,105910.0,105900.0,0.005083]
[1750807933622,0.60870536,105910.0,105900.0,0.004083]
[1750807933839,0.60770536,105910.0,105900.0,8.3e-05]
[1750807934054,0.60970536,105910.0,105900.0,0.003083]
[1750807938617,1.21260228,105910.0,105900.0,0.003083]
[1750807939822,1.21260228,105910.0,105900.0,0.003]
[1750807940844,0.94970536,105910.0,105900.0,0.003]
[1750807945516,1.21260228,105910.0,105900.0,0.003]
[1750807946376,0.94970536,105910.0,105900.0,0.003]
[1750807957789,1.21260228,105910.0,105900.0,0.003]
[1750807958151,1.28758481,105910.0,105900.0,0.003]
[1750807958351,1.32261549,105910.0,105900.0,0.003]
[1750807959483,1.34521248,105910.0,105900.0,0.003]
[1750807960293,1.32261549,105910.0,105900.0,0.003]
[1750807960578,1.34521354,105910.0,105900.0,0.003]
[1750807961346,1.32261549,105910.0,105900.0,0.003]
[1750807961965,1.47613549,105910.0,105900.0,0.003]
[1750807964111,1.49873002,105910.0,105900.0,0.003]
[1750807971281,1.47613549,105910.0,105900.0,0.003]
[1750807971522,1.49871795,105910.0,105900.0,0.003]
[1750807973200,1.47613549,105910.0,105900.0,0.003]
[1750807973403,1.49871851,105910.0,105900.0,0.003]
[1750807973555,1.47613549,105910.0,105900.0,0.003]
[1750807975766,1.49871855,105910.0,105900.0,0.003]
[1750807977944,1.49871855,105910.0,105900.0,0.000876]
[1750807980893,0.97292471,105910.0,105900.0,0.000876]
[1750807981060,1.49871855,105910.0,105900.0,0.000876]
[1750807981464,1.47613549,105910.0,105900.0,0.000876]
[1750807983526,1.49872539,105910.0,105900.0,0.000876]
[1750807984435,1.49872774,105910.0,105900.0,0.000876]
[1750807987523,1.34520774,105910.0,105900.0,0.000876]
[1750807987744,0.94019761,105910.0,105900.0,0.000876]
[1750807987918,1.07112536,105910.0,105900.0,0.033259]
[1750807988305,0.55920658,105910.0,105900.0,0.033259]
[1750807988498,0.9756235,105910.0,105900.0,0.033259]
[1750807990730,0.4821035,105910.0,105900.0,0.033259]
[1750807990955,0.6072165,105910.0,105900.0,0.033259]
[1750807991153,0.9472165,105910.0,105900.0,0.033259]
[1750807991392,0.68431958,105910.0,105900.0,0.033259]
[1750807991595,0.34443958,105910.0,105900.0,0.29615592]
[1750807991795,0.19083958,105910.0,105900.0,0.29615592]
[1750807991946,0.19083958,105910.0,105900.0,0.033259]
[1750807992151,0.34451958,105910.0,105900.0,0.033259]
[1750807993607,0.6074165,105910.0,105900.0,0.033259]
[1750807994577,0.6073765,105910.0,105900.0,0.033259]
[1750807999438,0.34447958,105910.0,105900.0,0.033259]
[1750807999642,0.6073765,105910.0,105900.0,0.033259]
[1750808002830,0.34447958,105910.0,105900.0,0.033259]
[1750808003048,0.34435958,105910.0,105900.0,0.29615592]
[1750808006251,0.6072565,105910.0,105900.0,0.033259]
[1750808011728,0.34435958,105910.0,105900.0,0.033259]
[1750808015948,0.34487958,105910.0,105900.0,0.29615592]
[1750808026109,0.19083958,105910.0,105900.0,0.29615592]
[1750808026340,0.34475958,105910.0,105900.0,0.29615592]
[1750808027337,0.19083958,105910.0,105900.0,0.48501333]
[1750808027544,0.34475958,105910.0,105900.0,0.85285498]
[1750808027743,0.34475958,105910.0,105900.0,0.58995806]
[1750808028386,0.34475958,105910.0,105900.0,0.58051519]
[1750808028582,0.34475958,105910.0,105900.0,0.39165778]
[1750808030794,0.34475958,105910.0,105900.0,0.58051519]
[1750808031211,0.19083958,105910.0,105900.0,0.58995806]
[1750808031362,0.34507958,105910.0,105900.0,0.58051519]
[1750808033455,0.34507958,105910.0,105900.0,0.59940084]
[1750808033682,0.34507958,105910.0,105900.0,0.58995806]
[1750808035242,0.36388326,105910.0,105900.0,0.60884326]
[1750808035470,0.36388326,105910.0,105900.0,0.60884335]
[1750808035623,0.36388326,105910.0,105900.0,0.59940075]
[1750808036179,0.35444155,105910.0,105900.0,0.58995806]
[1750808036623,0.35444155,105910.0,105900.0,0.59940084]
[1750808036830,0.35444155,105910.0,105900.0,0.32706114]
[1750808037013,0.34499958,105910.0,105900.0,0.58995806]
[1750808037884,0.34499958,105910.0,105900.0,0.58051519]
[1750808039822,0.34499958,105910.0,105900.0,0.39165778]
[1750808040030,0.34499958,105910.0,105900.0,0.58051519]
[1750808040289,0.34499958,105910.0,105900.0,0.58995806]
[1750808040495,0.34499958,105910.0,105900.0,0.58051519]
[1750808040880,0.34499958,105910.0,105900.0,0.58995797]
[1750808042783,0.34499958,105910.0,105900.0,0.59940066]
[1750808043423,0.34499958,105910.0,105900.0,0.31761827]
[1750808043628,0.34499958,105910.0,105900.0,0.59940048]
[1750808043810,0.34499958,105910.0,105900.0,0.58995788]
[1750808044019,0.35444146,105910.0,105900.0,0.58995788]
[1750808044382,0.35444146,105910.0,105900.0,0.58051519]
[1750808044589,0.35444146,105910.0,105900.0,0.58995797]
[1750808045191,0.35444146,105910.0,105900.0,0.59940066]
[1750808045617,0.35444146,105910.0,105900.0,0.60884326]
[1750808046031,0.17524297,105910.0,105900.0,0.89062493]
[1750808046484,0.16580135,105910.0,105900.0,0.36483109]
[1750808046658,0.1941263,105910.0,105900.0,0.89062493]
[1750808046832,0.1921263,105910.0,105900.0,0.89062493]
[1750808047168,0.1931263,105910.0,105900.0,0.89262493]
[1750808047381,0.1931263,105910.0,105900.0,0.89174893]
[1750808047929,0.1836845,105910.0,105900.0,0.89174893]
[1750808048174,0.1846845,105910.0,105900.0,0.89874893]
[1750808048330,0.1846845,105910.0,105900.0,0.37295509]
[1750808048852,0.19412638,105910.0,105900.0,0.89874893]
[1750808049510,0.1941263,105910.0,105900.0,0.89874893]
[1750808049727,0.1941263,105910.0,105900.0,0.37295509]
[1750808049884,0.1941263,105910.0,105900.0,0.89874893]
[1750808050253,0.0397663,105910.0,105900.0,0.89874893]
[1750808050611,0.1940463,105910.0,105900.0,0.89874893]
[1750808051927,0.20348818,105910.0,105900.0,0.89874902]